bitfinex-derivatives/quotes_SOLF0:USTF0_20241211
["timestamp","ask_amount","ask_price","bid_price","bid_amount"]
[1733895581874,2.3008,217.22,217.18,2.32]
[1733895582173,7.1649519,217.21,217.18,2.32]
[1733895583680,7.1649519,217.21,217.18,4.6212]
[1733895584379,9.4658519,217.21,217.18,2.32]
[1733895586482,7.1649519,217.21,217.18,2.32]
[1733895587074,2.3006,217.24,217.18,4.6212]
[1733895587285,9.4655519,217.24,217.18,4.6212]
[1733895588484,9.4655519,217.24,217.18,2.3012]
[1733895588784,9.4655519,217.24,217.19,2.32]
[1733895589388,7.1649519,217.24,217.19,2.32]
[1733895590283,2.8844,217.29,217.19,2.32]
[1733895590483,7.1649519,217.26,217.21,2.3008]
[1733895594180,7.1649519,217.26,217.18,7.1649519]
[1733895594181,2.3007,217.23,217.18,2.3012]
[1733895594384,7.1649519,217.22,217.21,2.26]
[1733895595688,9.4657519,217.22,217.21,2.26]
[1733895595888,7.1649519,217.22,217.21,2.26]
[1733895596295,9.4656519,217.24,217.21,2.26]
[1733895596791,2.3007,217.23,217.21,2.26]
[1733895597292,9.4656519,217.23,217.21,2.26]
[1733895597590,7.1649519,217.23,217.21,2.26]
[1733895598283,7.1649519,217.23,217.14,1.4055]
[1733895598487,7.1649519,217.2,217.15,2.26]
[1733895598683,7.1649519,217.22,217.15,9.4249519]
[1733895598887,2.3008,217.22,217.16,2.3013]
[1733895599084,5.44729801,217.35,217.2,7.1649519]
[1733895599284,5.44729801,217.35,217.15,2.26]
[1733895599285,7.1649519,217.3,217.23,7.1649519]
[1733895599595,2.30107229,217.29,217.23,7.1649519]
[1733895599892,2.30107229,217.29,217.22,7.1649519]
[1733895600094,7.1649519,217.28,217.22,7.1649519]
[1733895600390,7.1649519,217.26,217.23,2.26]
[1733895600696,7.1649519,217.24,217.23,2.26]
[1733895601791,9.4655519,217.24,217.23,2.26]
[1733895602791,2.3004,217.26,217.23,2.26]
[1733895602991,7.1649519,217.25,217.23,2.26]
[1733895605997,2.30128411,217.27,217.23,2.26]
[1733895606195,7.1649519,217.26,217.24,2.3005]
[1733895607895,7.1649519,217.26,217.25,2.3005]
[1733895608392,7.1649519,217.26,217.23,2.26]
[1733895608592,7.1649519,217.26,217.23,4.5606]
[1733895608995,2.30128411,217.27,217.23,2.26]
[1733895609197,7.1649519,217.25,217.23,2.26]
[1733895610795,9.4654519,217.25,217.23,2.26]
[1733895611001,7.1649519,217.25,217.18,2.3011]
[1733895611198,7.1649519,217.22,217.19,2.26]
[1733895612408,2.3005,217.25,217.19,4.561]
[1733895612595,7.1649519,217.23,217.19,4.561]
[1733895614002,7.1649519,217.23,217.19,2.26]
[1733895614199,7.1649519,217.23,217.2,2.301]
[1733895614900,2.30128411,217.27,217.2,7.1649519]
[1733895615101,9.46623601,217.27,217.2,7.1649519]
[1733895615299,9.46623601,217.27,217.24,2.3004]
[1733895615495,2.30128411,217.27,217.25,2.26]
[1733895615801,2.30128411,217.27,217.26,2.26]
[1733895616101,2.30128411,217.27,217.26,4.5603]
[1733895616600,2.30128411,217.27,217.26,11.7252519]
[1733895616799,0.06078411,217.27,217.26,11.7252519]
[1733895621904,7.1649519,217.33,217.26,9.4249519]
[1733895622102,7.1649519,217.33,217.29,2.3]
[1733895622503,1.3712,217.43,217.33,2.2996]
[1733895622703,7.1649519,217.39,217.34,2.22]
[1733895623098,7.1649519,217.39,217.35,2.2993]
[1733895623504,7.1649519,217.39,217.34,2.22]
[1733895623700,1.3712,217.43,217.36,2.2993]
[1733895623701,7.1649519,217.41,217.36,2.2993]
[1733895625211,7.1649519,217.41,217.37,2.22]
[1733895626811,7.1649519,217.43,217.37,2.22]
[1733895627212,7.1649519,217.43,217.38,2.299]
[1733895628214,7.1649519,217.43,217.39,2.2989]
[1733895628410,2.2984,217.45,217.37,2.22]
[1733895628411,7.1649519,217.45,217.38,7.1649519]
[1733895628611,7.1649519,217.47,217.4,7.1649519]
[1733895628914,9.4629519,217.49,217.42,7.1649519]
[1733895629111,9.4629519,217.49,217.43,2.22]
[1733895629312,1.4257,217.5,217.44,2.22]
[1733895629609,7.1649519,217.5,217.44,2.22]
[1733895629812,5.4185404,217.56,217.44,2.22]
[1733895630015,7.1649519,217.5,217.46,2.2982]
[1733895630211,2.2976,217.53,217.44,2.22]
[1733895630519,7.1649519,217.56,217.49,7.1649519]
[1733895630716,7.1649519,217.56,217.5,2.22]
[1733895631718,7.1649519,217.56,217.5,4.5177]
[1733895631917,2.2972,217.57,217.5,4.5177]
[1733895632119,9.4621519,217.57,217.5,4.5177]
[1733895632318,2.2972,217.56,217.5,4.5177]
[1733895632919,7.1649519,217.55,217.5,4.5177]
[1733895633820,9.4622519,217.55,217.5,2.22]
[1733895634618,7.1649519,217.55,217.5,2.22]
[1733895634921,9.4620519,217.57,217.5,2.22]
[1733895635116,7.1649519,217.57,217.51,7.1649519]
[1733895635322,7.1649519,217.57,217.52,2.2976]
[1733895636430,1.4354,217.59,217.53,2.2975]
[1733895636623,1.399,217.6,217.53,7.1649519]
[1733895637322,9.4616519,217.61,217.55,2.2972]
[1733895637527,9.4616519,217.61,217.56,2.22]
[1733895639032,7.1649519,217.59,217.56,2.22]
[1733895642827,1.4493,217.62,217.5,2.2978]
[1733895642828,7.1649519,217.57,217.5,2.2978]
[1733895643020,1.4493,217.62,217.51,2.22]
[1733895643021,7.1649519,217.54,217.51,2.22]
[1733895643631,7.1649519,217.58,217.51,2.22]
[1733895643821,7.1649519,217.58,217.51,9.3849519]
[1733895644026,1.4493,217.62,217.51,9.3849519]
[1733895644225,7.1649519,217.59,217.51,9.3849519]
[1733895645030,7.1649519,217.59,217.53,7.1649519]
[1733895645732,7.1649519,217.59,217.54,2.2974]
[1733895649028,7.1649519,217.61,217.56,2.2972]
[1733895649228,7.1649519,217.61,217.57,2.22]
[1733895649628,1.4493,217.62,217.57,4.517]
[1733895650233,1.3838,217.65,217.58,2.2969]
[1733895650433,8.5487519,217.65,217.58,2.2969]
[1733895650640,8.5487519,217.65,217.57,9.3849519]
[1733895650832,8.5487519,217.65,217.6,2.2967]
[1733895651540,7.1649519,217.65,217.6,2.2967]
[1733895651734,8.6559519,217.67,217.6,2.2967]
[1733895651939,2.2961,217.66,217.6,2.2967]
[1733895652631,1.491,217.67,217.62,2.2965]
[1733895652832,1.491,217.67,217.63,2.2]
[1733895653042,3.7276,217.7,217.64,2.2963]
[1733895653239,7.1649519,217.69,217.64,2.2963]
[1733895653939,1.4319,217.7,217.66,2.296]
[1733895654137,189.73896855,217.86,217.67,7.1649519]
[1733895654138,5.42609805,217.84,217.67,7.1649519]
[1733895654438,7.1649519,217.8,217.72,7.1649519]
[1733895654638,2.2948,217.79,217.73,4.4954]
[1733895654938,2.2948,217.79,217.74,7.1649519]
[1733895655434,7.1649519,217.8,217.74,7.1649519]
[1733895655435,9.4596519,217.8,217.75,2.2]
[1733895656644,2.2945,217.82,217.76,2.295]
[1733895656840,9.4594519,217.82,217.75,2.2]
[1733895657141,2.2945,217.82,217.75,2.2]
[1733895657341,2.2946,217.81,217.75,2.2]
[1733895657939,2.2944,217.83,217.76,2.295]
[1733895658938,4.173,217.85,217.76,2.295]
[1733895659140,2.2944,217.82,217.76,2.295]
[1733895659341,2.2944,217.82,217.75,2.2]
[1733895659541,4.173,217.85,217.73,11.1313116]
[1733895659741,2.2946,217.8,217.76,2.2]
[1733895659940,4.173,217.85,217.76,2.2]
[1733895660136,2.2947,217.8,217.76,2.2]
[1733895660943,11.1313116,217.83,217.76,2.2]
[1733895660944,2.2948,217.79,217.76,2.2]
[1733895661447,2.2945,217.82,217.77,2.2]
[1733895661643,11.1313116,217.83,217.77,2.2]
[1733895661838,8.967727,217.82,217.77,2.2]
[1733895662044,11.1313116,217.83,217.77,2.2]
[1733895662244,8.97032829,217.82,217.78,2.2]
[1733895662446,21.68614628,217.82,217.78,2.2]
[1733895662747,8.97032829,217.81,217.78,2.2]
[1733895662941,2.2947,217.79,217.78,2.2]
[1733895663545,2.2946,217.81,217.78,2.2]
[1733895663739,11.1313116,217.83,217.78,2.2]
[1733895664249,2.2947,217.8,217.78,2.2]
[1733895664943,2.2947,217.8,217.7,11.1313116]
[1733895664944,2.2949,217.78,217.71,2.2956]
[1733895665148,11.1313116,217.83,217.72,2.2]
[1733895665349,8.9730162,217.82,217.72,2.2]
[1733895665650,11.1313116,217.83,217.73,2.2]
[1733895665852,8.97837635,217.82,217.73,2.2]
[1733895666053,11.1313116,217.83,217.73,2.2]
[1733895666345,8.98337227,217.82,217.73,2.2]
[1733895666554,2.2951,217.76,217.73,2.2]
[1733895668555,2.2952,217.75,217.73,2.2]
[1733895668746,2.2952,217.75,217.7,11.1313116]
[1733895669057,2.2952,217.75,217.71,2.2]
[1733895669246,2.2954,217.73,217.68,47.78]
[1733895669447,2.2954,217.73,217.69,2.2]
[1733895669950,2.2954,217.73,217.68,47.78]
[1733895669951,11.1313116,217.79,217.68,47.78]
[1733895670155,11.1313116,217.79,217.69,2.2]
[1733895670356,2.2956,217.71,217.69,2.2]
[1733895673453,11.1313116,217.79,217.69,2.2]
[1733895673649,9.00924021,217.78,217.69,2.2]
[1733895673954,11.1313116,217.76,217.69,2.2]
[1733895674155,2.2956,217.71,217.69,2.2]
[1733895674556,11.1313116,217.73,217.68,2.2]
[1733895675562,2.2958,217.69,217.68,2.2]
[1733895682569,7.13224952,217.7,217.68,2.2]
[1733895682570,9.42794952,217.7,217.68,2.2]
[1733895683860,7.13224952,217.72,217.68,2.2]
[1733895684369,4.1735,217.75,217.68,9.33224952]
[1733895684568,7.13224952,217.75,217.68,9.33224952]
[1733895684863,7.13224952,217.77,217.68,9.33224952]
[1733895685062,7.13224952,217.77,217.7,7.13224952]
[1733895685459,4.411,217.85,217.7,7.13224952]
[1733895685772,7.13224952,217.78,217.72,2.2955]
[1733895685966,7.13224952,217.78,217.73,2.2]
[1733895686165,9.42714952,217.78,217.73,4.4954]
[1733895687468,9.42694952,217.8,217.74,9.42754952]
[1733895687769,9.42694952,217.8,217.74,7.13224952]
[1733895688271,7.13224952,217.8,217.74,7.13224952]
[1733895688468,7.13224952,217.8,217.76,2.2951]
[1733895692467,7.13224952,217.8,217.74,12.62674323]
[1733895692676,7.13224952,217.8,217.74,14.92194323]
[1733895693577,7.13224952,217.8,217.75,2.2952]
[1733895694475,7.13224952,217.76,217.75,2.2]
[1733895694674,7.13224952,217.76,217.74,2.2]
[1733895695574,9.42714952,217.78,217.74,2.2]
[1733895695772,7.13224952,217.78,217.74,2.2]
[1733895696078,2.295,217.77,217.74,2.2]
[1733895702683,7.13224952,217.76,217.74,2.2]
[1733895703978,7.13224952,217.78,217.74,2.2]
[1733895705684,2.2951,217.76,217.74,2.2]
[1733895706486,2.2952,217.75,217.74,2.2]
[1733895706879,7.13224952,217.78,217.74,2.2]
[1733895707284,2.2951,217.76,217.74,2.2]
[1733895710998,2.2951,217.76,217.75,2.2]
[1733895719197,1.471,217.85,217.75,2.2]
[1733895719409,2.2947,217.8,217.75,2.2]
[1733895720303,2.2948,217.79,217.75,2.2]
[1733895721104,1.471,217.85,217.77,2.2949]
[1733895721105,2.2944,217.82,217.77,2.2949]
[1733895721903,4.1716,217.91,217.78,7.13224952]
[1733895722104,7.13224952,217.85,217.78,7.13224952]
[1733895723600,2.2941,217.85,217.8,2.2946]
[1733895723805,2.2941,217.85,217.81,2.18]
[1733895725609,7.13224952,217.93,217.84,7.13224952]
[1733895725805,7.13224952,217.93,217.86,7.13224952]
[1733895725806,22.02454677,217.92,217.86,7.13224952]
[1733895726002,9.42564952,217.93,217.87,2.18]
[1733895726220,4.3109,217.99,217.88,7.13224952]
[1733895726511,4.3109,217.99,217.89,2.2937]
[1733895726512,2.2931,217.95,217.89,2.2937]
[1733895727009,9.10486905,217.94,217.9,7.13224952]
[1733895727413,7.13224952,217.98,217.92,7.13224952]
[1733895727612,22.00533996,217.97,217.93,2.18]
[1733895727809,7.13224952,217.98,217.93,2.18]
[1733895727810,22.00533996,217.96,217.93,2.18]
[1733895728103,2.2928,217.98,217.93,2.18]
[1733895728304,22.01016887,217.97,217.93,2.18]
[1733895728504,9.10313572,217.96,217.93,2.18]
[1733895728803,2.2929,217.97,217.93,2.18]
[1733895729210,9.42514952,217.97,217.93,2.18]
[1733895730107,2.2929,217.97,217.93,2.18]
[1733895732512,9.42494952,217.99,217.93,2.18]
[1733895732709,4.3134,218.05,217.93,9.31224952]
[1733895732916,4.3134,218.05,217.86,2.18]
[1733895732917,7.13224952,217.94,217.86,2.18]
[1733895733114,7.13224952,217.91,217.86,2.18]
[1733895733315,7.13224952,217.89,217.86,2.18]
[1733895735312,9.42594952,217.89,217.86,2.18]
[1733895737715,7.13224952,217.87,217.79,2.2947]
[1733895738014,7.13224952,217.87,217.8,2.18]
[1733895738716,2.2941,217.86,217.8,2.18]
[1733895740517,7.13224952,217.87,217.8,2.18]
[1733895740719,2.2939,217.88,217.81,7.13224952]
[1733895741617,2.2939,217.88,217.81,9.42674952]
[1733895742314,7.13224952,217.89,217.81,7.13224952]
[1733895742515,7.13224952,217.89,217.82,2.2944]
[1733895742711,7.13224952,217.91,217.83,7.13224952]
[1733895743212,7.13224952,217.93,217.87,7.13224952]
[1733895743412,7.13224952,217.93,217.88,2.2]
[1733895743821,7.13224952,217.91,217.88,2.2]
[1733895744011,2.2,218.03,217.82,7.13224952]
[1733895744217,7.13224952,217.89,217.83,2.2]
[1733895744816,9.42594952,217.89,217.83,4.4943]
[1733895745017,9.42594952,217.89,217.84,5.45596833]
[1733895746121,7.13224952,217.89,217.84,5.45596833]
[1733895746313,7.13224952,217.87,217.8,7.13224952]
[1733895746513,7.13224952,217.87,217.81,2.2]
[1733895747421,2.2941,217.86,217.81,2.2]
[1733895748923,7.13224952,217.87,217.81,4.4945]
[1733895749917,2.2937,217.9,217.83,2.2943]
[1733895750123,7.13224952,217.9,217.84,7.13224952]
[1733895750324,7.13224952,217.92,217.84,7.13224952]
[1733895750623,7.13224952,217.92,217.87,2.2939]
[1733895750814,7.13224952,217.92,217.88,2.2]
[1733895753122,0.16478,218.0,217.88,2.2]
[1733895753123,7.13224952,217.9,217.88,2.2]
[1733895754425,7.13224952,217.92,217.88,4.4938]
[1733895756126,0.16478,218.0,217.88,2.2]
[1733895756326,7.13224952,217.94,217.9,2.2936]
[1733895756516,7.13224952,217.94,217.88,2.2]
[1733895757620,9.42544952,217.94,217.88,4.4937]
[1733895758124,0.16478,218.0,217.88,2.2]
[1733895758322,7.13224952,217.94,217.88,2.2]
[1733895759122,7.13224952,217.94,217.9,2.2936]
[1733895761422,7.13224952,217.94,217.87,5.47489916]
[1733895761622,9.42544952,217.94,217.88,4.4937]
[1733895761819,9.42544952,217.94,217.88,2.2]
[1733895762324,7.13224952,217.94,217.9,2.2936]
[1733895763923,7.13224952,217.96,217.92,2.2934]
[1733895764130,7.13224952,217.96,217.93,2.2]
[1733895765428,7.13224952,217.94,217.93,2.2]
[1733895766432,25.61538057,218.03,217.93,2.2]
[1733895766628,7.13224952,217.96,217.93,2.2]
[1733895773332,7.13224952,217.98,217.93,4.4933]
[1733895773938,4.3352,218.04,217.94,2.2932]
[1733895774133,31.22294091,218.03,217.93,9.33224952]
[1733895774332,7.13224952,218.0,217.93,9.33224952]
[1733895774534,9.42494952,218.0,217.95,2.2931]
[1733895774731,4.3352,218.04,217.93,9.33224952]
[1733895774933,7.13224952,218.01,217.93,9.33224952]
[1733895775637,9.42474952,218.01,217.96,2.2929]
[1733895775939,7.13224952,217.99,217.96,2.2929]
[1733895778036,9.42474952,218.01,217.96,2.2929]
[1733895778935,0.1998,218.05,217.95,7.13224952]
[1733895779134,0.1998,218.05,217.93,2.2]
[1733895779135,29.61275124,218.04,217.97,7.13224952]
[1733895779335,0.1998,218.05,217.87,5.47489916]
[1733895779336,12.93948427,218.03,217.99,7.13224952]
[1733895779535,0.1998,218.05,218.02,2.2924]
[1733895779734,12.9371583,218.04,218.01,7.13224952]
[1733895779939,0.1998,218.05,218.01,7.13224952]
[1733895780141,7.13224952,218.08,218.01,7.13224952]
[1733895780342,31.21378685,218.07,218.01,7.13224952]
[1733895780541,12.93815579,218.06,218.01,7.13224952]
[1733895780743,9.42404952,218.08,218.03,2.2922]
[1733895780943,31.20905931,218.07,218.01,7.13224952]
[1733895781144,12.93619648,218.06,218.01,9.42464952]
[1733895781949,12.93619648,218.06,218.02,2.2923]
[1733895782347,2.2918,218.07,218.02,2.2923]
[1733895782539,9.42404952,218.08,218.02,2.2923]
[1733895782849,12.92735693,218.07,218.02,2.2923]
[1733895783145,9.42404952,218.08,218.02,2.2923]
[1733895783348,12.92371719,218.07,218.02,2.2923]
[1733895783544,9.42404952,218.08,218.02,2.2923]
[1733895784846,2.2918,218.08,218.03,2.2922]
[1733895785350,2.2918,218.08,218.01,7.13224952]
[1733895786752,2.2918,218.08,218.02,2.2923]
[1733895788846,2.2918,218.08,218.01,7.13224952]
[1733895789049,9.42404952,218.08,218.03,2.2922]
[1733895790251,7.13224952,218.08,218.01,7.13224952]
[1733895790454,2.292,218.06,218.01,9.42464952]
[1733895790857,7.13224952,218.08,218.01,9.42464952]
[1733895791055,2.2919,218.07,218.02,2.2924]
[1733895792547,9.42394952,218.08,218.03,2.2923]
[1733895794458,0.22823,218.1,218.03,2.2923]
[1733895794459,9.65207952,218.1,218.03,7.13224952]
[1733895794655,7.36047952,218.1,218.03,7.13224952]
[1733895796156,7.36047952,218.1,218.06,2.2919]
[1733895796468,7.36047952,218.1,218.07,2.18]
[1733895797665,7.36047952,218.1,218.07,4.4718]
[1733895797860,7.36047952,218.1,218.07,2.18]
[1733895798661,0.22823,218.1,218.07,2.18]
[1733895798856,7.13224952,218.12,218.07,2.18]
[1733895799557,7.13224952,218.12,218.08,2.2917]
[1733895800268,7.13224952,218.12,218.07,2.18]
[1733895801061,2.2913,218.13,218.07,4.4718]
[1733895801062,7.13224952,218.13,218.07,4.4718]
[1733895801260,7.13224952,218.13,218.0,2.8168]
[1733895801465,7.13224952,218.11,218.04,7.13224952]
[1733895802158,7.13224952,218.11,218.07,5.45066779]
[1733895802366,7.13224952,218.11,218.08,2.18]
[1733895803068,7.13224952,218.11,218.09,2.16]
[1733895804576,2.2915,218.1,218.09,2.16]
[1733895805470,2.2917,218.09,218.04,5.48312862]
[1733895805669,9.42394952,218.09,218.05,2.16]
[1733895806170,7.13224952,218.09,218.05,2.16]
[1733895806469,2.2918,218.08,218.05,2.16]
[1733895807068,7.13224952,218.07,218.04,5.48312862]
[1733895807275,9.42414952,218.07,218.05,2.16]
[1733895808567,9.42414952,218.07,218.01,2.2925]
[1733895808767,7.13224952,218.03,217.98,5.47007845]
[1733895808965,7.13224952,218.03,217.99,2.16]
[1733895809572,2.2925,218.02,217.99,2.16]
[1733895810069,7.13224952,218.03,217.99,2.16]
[1733895812169,2.2925,218.02,217.99,2.16]
[1733895814476,2.2923,218.03,217.99,2.16]
[1733895815677,7.13224952,218.05,217.99,2.16]
[1733895815878,15.24390785,218.04,217.99,4.4527]
[1733895816078,12.95170785,218.03,217.99,4.4527]
[1733895816279,2.2922,218.04,217.99,4.4527]
[1733895816576,12.9550673,218.03,217.99,4.4527]
[1733895816777,2.2922,218.04,217.99,4.4527]
[1733895817078,12.95500248,218.03,217.99,4.4527]
[1733895817380,2.2922,218.04,217.99,4.4527]
[1733895817572,12.95861621,218.03,217.99,4.4527]
[1733895817770,2.2922,218.04,217.99,4.4527]
[1733895817975,12.95857843,218.03,217.99,4.4527]
[1733895818172,2.2922,218.04,217.99,4.4527]
[1733895818380,12.96207769,218.03,218.0,2.2925]
[1733895818583,7.13224952,218.08,218.0,7.13224952]
[1733895818780,30.90210513,218.07,218.0,7.13224952]
[1733895819078,30.90210513,218.06,218.0,7.13224952]
[1733895819383,12.96221789,218.05,218.0,7.13224952]
[1733895819682,7.13224952,218.08,218.0,7.13224952]
[1733895819881,22.52720367,218.07,218.0,7.13224952]
[1733895820081,22.5272657,218.06,218.0,7.13224952]
[1733895820278,12.9664063,218.05,218.0,7.13224952]
[1733895820477,7.13224952,218.08,218.0,7.13224952]
[1733895820679,2.2921,218.05,218.0,9.42474952]
[1733895821783,12.97221394,218.04,218.0,9.42474952]
[1733895821983,2.2921,218.05,218.0,9.42474952]
[1733895822285,12.97208168,218.04,218.0,7.13224952]
[1733895822481,2.2921,218.04,218.0,7.13224952]
[1733895823780,7.13224952,218.08,218.0,7.13224952]
[1733895823781,2.292,218.05,218.0,7.13224952]
[1733895823979,12.98088844,218.04,218.0,7.13224952]
[1733895824177,2.292,218.05,218.0,7.13224952]
[1733895824380,12.98117992,218.04,218.0,7.13224952]
[1733895824585,2.292,218.05,218.01,2.16]
[1733895824786,12.98234328,218.04,218.01,2.16]
[1733895824986,2.292,218.05,218.01,2.16]
[1733895825180,12.98222777,218.04,218.01,2.16]
[1733895825382,2.292,218.05,218.01,2.16]
[1733895825582,12.98144523,218.04,218.01,2.16]
[1733895825782,2.292,218.05,218.01,2.16]
[1733895826384,12.98129302,218.04,218.01,2.16]
[1733895826687,2.292,218.05,218.01,2.16]
[1733895827689,2.2922,218.03,218.02,2.16]
[1733895829580,7.13224952,218.04,217.93,2.7398]
[1733895829781,7.13224952,218.01,217.94,2.16]
[1733895829982,1.4752,218.1,217.94,9.29224952]
[1733895830190,7.13224952,218.01,217.94,9.29224952]
[1733895830390,2.2926,217.99,217.94,2.16]
[1733895830686,9.42484952,217.99,217.95,2.16]
[1733895831081,12.97668095,217.98,217.95,2.16]
[1733895831280,9.42484952,217.99,217.95,2.16]
[1733895831686,12.9733317,217.98,217.95,2.16]
[1733895831892,2.2927,217.98,217.95,2.16]
[1733895832790,2.2927,217.98,217.95,7.55750966]
[1733895833494,2.2927,217.98,217.95,2.16]
[1733895836497,191.21416855,218.1,217.95,9.29224952]
[1733895836498,9.42454952,218.03,217.95,9.29224952]
[1733895836796,12.96178193,218.02,217.98,2.2927]
[1733895837188,2.2923,218.03,217.98,2.2927]
[1733895837391,12.96172243,218.02,217.98,2.2927]
[1733895837687,7.13224952,218.05,217.98,2.2927]
[1733895837892,22.51899159,218.04,217.99,7.13224952]
[1733895838198,7.13224952,218.07,218.0,2.16]
[1733895838497,22.52637791,218.06,218.0,2.16]
[1733895838697,12.96591692,218.05,218.01,2.2923]
[1733895838993,2.2917,218.08,218.01,9.42454952]
[1733895839189,22.52759573,218.07,218.01,9.42454952]
[1733895839496,9.42394952,218.08,218.01,9.42454952]
[1733895839497,12.96659302,218.06,218.02,2.2923]
[1733895839696,9.42394952,218.08,218.02,2.2923]
[1733895839896,12.96773247,218.07,218.02,2.2923]
[1733895840195,9.42394952,218.08,218.02,2.2923]
[1733895840397,12.96881353,218.07,218.02,2.2923]
[1733895840597,9.42394952,218.08,218.02,2.2923]
[1733895840790,12.96914617,218.07,218.02,2.2923]
[1733895840988,9.42394952,218.08,218.02,2.2923]
[1733895841190,12.9683812,218.07,218.02,2.2923]
[1733895841390,7.13224952,218.08,218.01,7.13224952]
[1733895842390,7.13224952,218.08,218.0,2.16]
[1733895842391,8.60744952,218.1,218.03,7.13224952]
[1733895842597,8.60744952,218.1,218.06,2.2919]
[1733895842792,8.60744952,218.1,218.07,2.16]
[1733895843793,7.13224952,218.1,218.07,4.4517]
[1733895843998,2.7352,218.12,218.07,4.4517]
[1733895843999,9.86744952,218.12,218.07,2.16]
[1733895845096,2.7352,218.12,218.07,2.16]
[1733895845297,7.13224952,218.11,218.07,2.16]
[1733895845697,2.7352,218.12,218.08,2.2916]
[1733895845998,7.13224952,218.11,218.08,2.2916]
[1733895846393,7.13224952,218.13,218.08,2.2916]
[1733895847092,2.53454,218.14,218.09,2.2915]
[1733895847294,20.09133292,218.13,218.09,2.2915]
[1733895847595,7.13224952,218.13,218.09,2.2915]
[1733895848195,0.24354,218.14,218.12,2.2912]
[1733895848403,0.24354,218.14,218.13,2.16]
[1733895849204,0.24354,218.14,218.13,11.58334952]
[1733895851005,0.24354,218.14,218.13,2.16]
[1733895853600,7.13224952,218.15,218.13,2.16]
[1733895854107,2.2908,218.16,218.13,2.16]
[1733895856305,2.2908,218.16,218.11,7.70625084]
[1733895856507,2.2908,218.16,218.14,2.16]
[1733895857798,2.2908,218.16,218.11,14.83850036]
[1733895858001,2.2908,218.16,218.12,2.16]
[1733895858908,2.2907,218.17,218.12,4.4512]
[1733895859108,7.13224952,218.2,218.13,7.13224952]
[1733895859305,10.04004952,218.21,218.13,7.13224952]
[1733895860009,2.2904,218.2,218.15,2.2909]
[1733895860913,9.42254952,218.21,218.16,2.2908]
[1733895861108,9.42254952,218.21,218.17,2.16]
[1733895862213,2.2903,218.21,218.17,2.16]
[1733895862513,9.42254952,218.21,218.17,2.16]
[1733895864507,2.2903,218.21,218.17,2.16]
[1733895865011,7.13224952,218.21,218.17,2.16]
[1733895865213,7.13224952,218.19,218.16,2.16]
[1733895865718,2.2907,218.17,218.16,2.16]
[1733895866214,7.13224952,218.19,218.16,2.16]
[1733895866408,2.2906,218.18,218.16,2.16]
[1733895868814,1.4549,218.23,218.16,2.16]
[1733895869113,2.2905,218.2,218.16,2.16]
[1733895870014,2.2903,218.22,218.18,2.2906]
[1733895870419,7.13224952,218.24,218.17,7.13224952]
[1733895871220,2.2901,218.23,218.17,7.13224952]
[1733895871516,7.13224952,218.24,218.17,7.13224952]
[1733895872717,2.2903,218.22,218.17,9.42294952]
[1733895876021,192.22371855,218.33,218.19,7.13224952]
[1733895876221,7.13224952,218.27,218.21,7.13224952]
[1733895876422,2.908,218.32,218.22,2.16]
[1733895876619,7.13224952,218.28,218.22,2.16]
[1733895876825,7.13224952,218.28,218.23,2.29]
[1733895877121,2.908,218.32,218.25,7.13224952]
[1733895877321,10.04024952,218.32,218.25,7.13224952]
[1733895877520,0.32475,218.33,218.29,7.13224952]
[1733895877721,0.32475,218.33,218.3,2.16]
[1733895878721,7.13224952,218.32,218.3,2.16]
[1733895879023,0.32475,218.33,218.3,2.16]
[1733895879224,9.74609952,218.33,218.3,2.16]
[1733895879924,2.2891,218.32,218.3,2.16]
[1733895883129,0.32475,218.33,218.3,2.16]
[1733895884031,2.61385,218.33,218.3,2.16]
[1733895884629,0.32475,218.33,218.3,2.16]
[1733895884931,7.45699952,218.33,218.3,2.16]